bitfinex-derivatives/quotes_BTCF0:USTF0_20251229
["timestamp","ask_amount","ask_price","bid_price","bid_amount"]
[1767021055868,0.0114213,87659.0,87636.0,0.0114241]
[1767021056067,0.05784,87669.0,87612.0,0.0114273]
[1767021056068,0.0114219,87654.0,87639.0,0.00017122]
[1767021056259,0.0114219,87655.0,87639.0,0.00017122]
[1767021057173,0.09708,87659.0,87639.0,0.00017122]
[1767021057374,0.0114224,87651.0,87633.0,0.05784]
[1767021057765,0.011423,87646.0,87633.0,0.05784]
[1767021059271,0.0114226,87650.0,87633.0,0.05784]
[1767021059477,0.00017024,87658.0,87631.0,0.00017122]
[1767021060473,0.00017024,87658.0,87622.0,0.0114261]
[1767021060474,0.0114216,87657.0,87622.0,0.0114261]
[1767021060673,0.00017024,87658.0,87621.0,0.0114262]
[1767021060674,0.0114218,87656.0,87621.0,0.0114262]
[1767021060974,0.00017024,87658.0,87621.0,0.11409729]
[1767021061177,0.00017024,87658.0,87611.0,0.03063715]
[1767021061178,0.0114218,87656.0,87611.0,0.03063715]
[1767021061375,0.09708,87657.0,87612.0,0.15488]
[1767021061575,0.0114226,87649.0,87621.0,0.1141051]
[1767021061878,0.09708,87657.0,87609.0,0.06302014]
[1767021061879,0.011424,87639.0,87626.0,0.00017122]
[1767021062071,0.00017122,87641.0,87626.0,0.00017122]
[1767021062578,0.0114222,87652.0,87629.0,0.0114251]
[1767021062780,0.09708,87658.0,87640.0,0.0114236]
[1767021063078,0.09708,87660.0,87642.0,0.00913657]
[1767021063278,0.0114209,87662.0,87641.0,0.0114235]
[1767021063474,0.0114216,87657.0,87643.0,0.00017122]
[1767021063670,0.01159242,87660.0,87643.0,0.00017122]
[1767021064074,0.00017122,87660.0,87643.0,0.00017122]
[1767021064469,0.00017122,87660.0,87646.0,0.0114228]
[1767021064979,0.00017122,87660.0,87643.0,0.00017122]
[1767021065173,0.00017122,87660.0,87643.0,1.22e-06]
[1767021065878,0.0114227,87648.0,87633.0,0.09708]
[1767021066183,0.0114227,87649.0,87633.0,0.09708]
[1767021066781,0.09725122,87660.0,87632.0,0.09708]
[1767021067078,0.0114225,87650.0,87637.0,0.00017112]
[1767021067274,0.09725122,87660.0,87637.0,0.00017112]
[1767021067479,0.0114214,87658.0,87637.0,0.00017112]
[1767021067676,0.0114251,87630.0,87609.0,0.03063715]
[1767021067885,0.0114222,87652.0,87599.0,0.06109549]
[1767021067886,0.0114237,87641.0,87610.0,0.09708]
[1767021068186,0.011425,87631.0,87607.0,0.108508]
[1767021068382,0.09708,87640.0,87606.0,0.06200821]
[1767021068682,0.0114249,87631.0,87608.0,0.0114279]
[1767021068874,0.00017112,87628.0,87594.0,0.03063715]
[1767021069076,0.09708,87627.0,87595.0,0.15484]
[1767021069278,0.0114266,87618.0,87595.0,0.1662695]
[1767021069474,0.0114259,87624.0,87599.0,0.0114291]
[1767021069674,0.00017112,87628.0,87596.0,0.26898091]
[1767021069880,0.00017112,87628.0,87611.0,0.0114274]
[1767021070072,0.00017112,87628.0,87611.0,0.1662674]
[1767021070276,0.00017112,87628.0,87611.0,0.15484]
[1767021070481,0.0114265,87619.0,87608.0,0.05776]
[1767021070677,0.00017112,87628.0,87608.0,0.05776]
[1767021071075,0.0114267,87618.0,87604.0,0.15484]
[1767021071284,0.0114261,87623.0,87604.0,0.15484]
[1767021071484,0.1085056,87626.0,87604.0,0.15484]
[1767021071783,0.0114265,87620.0,87604.0,0.15484]
[1767021071978,0.09708,87626.0,87604.0,0.05776]
[1767021072172,0.0114272,87614.0,87603.0,0.05793122]
[1767021072572,0.0114267,87618.0,87603.0,0.05793122]
[1767021072784,0.0114258,87624.0,87603.0,0.05793122]
[1767021073284,0.00017112,87628.0,87612.0,0.0114273]
[1767021073484,0.00017112,87628.0,87613.0,0.15484]
[1767021074276,0.0114255,87627.0,87613.0,0.15484]
[1767021074478,0.0114264,87620.0,87603.0,0.00017122]
[1767021074887,0.011426,87623.0,87603.0,0.00017122]
[1767021075187,0.09708,87627.0,87603.0,0.00017122]
[1767021075484,0.011427,87616.0,87603.0,0.00017122]
[1767021075689,0.0114282,87606.0,87594.0,0.09708]
[1767021075879,0.21819465,87610.0,87594.0,0.05776]
[1767021076080,0.0114278,87610.0,87594.0,0.05776]
[1767021076383,0.0114278,87610.0,87593.0,0.05776]
[1767021076579,0.0114278,87610.0,87587.0,0.0114306]
[1767021076580,0.0114287,87602.0,87578.0,0.0114318]
[1767021076782,0.00017122,87599.0,87585.0,0.09708]
[1767021077183,0.0114292,87598.0,87581.0,0.00017122]
[1767021077489,0.00017122,87599.0,87581.0,0.05793122]
[1767021078889,0.01160032,87599.0,87581.0,0.05793122]
[1767021079293,0.00017122,87599.0,87581.0,0.06936262]
[1767021079583,0.32031641,87640.0,87581.0,0.06936262]
[1767021079584,0.06127546,87625.0,87581.0,0.05793122]
[1767021079792,0.08175401,87634.0,87582.0,0.11416828]
[1767021079793,0.0114267,87617.0,87582.0,0.11416828]
[1767021080177,0.0114267,87617.0,87593.0,0.0114298]
[1767021080378,0.09708,87619.0,87593.0,0.05776]
[1767021080590,0.0114281,87607.0,87597.0,0.00017122]
[1767021080793,0.0114282,87606.0,87597.0,1.22e-06]
[1767021080986,0.011428,87608.0,87597.0,1.22e-06]
[1767021081187,0.0114275,87612.0,87597.0,1.22e-06]
[1767021081483,0.00017122,87615.0,87597.0,1.22e-06]
[1767021081686,0.00017122,87615.0,87598.0,0.0114292]
[1767021081882,0.00017122,87615.0,87597.0,1.22e-06]
[1767021081883,0.00017122,87615.0,87600.0,0.0114288]
[1767021082082,0.00017122,87615.0,87597.0,1.22e-06]
[1767021083895,0.00017122,87615.0,87597.0,0.01143052]
[1767021084592,0.09712,87627.0,87600.0,0.0114289]
[1767021084992,0.09712,87627.0,87597.0,0.01143052]
[1767021085178,0.0114266,87619.0,87597.0,1.22e-06]
[1767021085586,0.0114269,87616.0,87597.0,1.22e-06]
[1767021085988,0.00017122,87617.0,87597.0,1.22e-06]
[1767021086291,0.00017122,87617.0,87598.0,0.0114292]
[1767021086895,0.00017122,87617.0,87600.0,0.0114289]
[1767021087390,0.0114261,87622.0,87600.0,0.0114289]
[1767021087780,0.0114264,87620.0,87597.0,0.01143052]
[1767021087986,0.09712,87627.0,87597.0,0.01143052]
[1767021088293,0.00017122,87621.0,87597.0,1.22e-06]
[1767021088592,0.011428,87608.0,87597.0,1.22e-06]
[1767021088893,0.011428,87608.0,87578.0,0.06260556]
[1767021088894,0.0114292,87599.0,87586.0,0.15488]
[1767021089085,0.0114271,87615.0,87581.0,0.05776]
[1767021089086,0.0114294,87597.0,87581.0,0.05776]
[1767021091190,0.0114297,87594.0,87581.0,0.05776]
[1767021091394,0.0114301,87592.0,87580.0,0.00017122]
[1767021091593,0.00017122,87598.0,87580.0,1.22e-06]
[1767021091800,0.0114304,87589.0,87580.0,1.22e-06]
[1767021092286,0.01143,87593.0,87580.0,1.22e-06]
[1767021092688,0.09712,87596.0,87570.0,0.00012776]
[1767021092884,0.09712,87596.0,87560.0,0.09712]
[1767021092885,0.0114319,87578.0,87560.0,0.09712]
[1767021093101,0.0114318,87578.0,87560.0,0.15488]
[1767021093398,0.0114323,87575.0,87560.0,0.15488]
[1767021093600,0.0114318,87579.0,87560.0,0.15488]
[1767021093800,0.00017122,87578.0,87561.0,0.00017122]
[1767021094096,0.00027238,87578.0,87561.0,0.00017122]
[1767021094394,0.00027238,87578.0,87561.0,0.01160522]
[1767021094694,0.06127546,87602.0,87573.0,0.0114324]
[1767021094892,0.15488,87601.0,87570.0,0.05776]
[1767021095091,0.09712,87600.0,87571.0,0.09712]
[1767021095300,0.0114298,87594.0,87571.0,0.09712]
[1767021095892,0.00017122,87591.0,87574.0,0.00017122]
[1767021097298,0.00017122,87591.0,87575.0,0.15484]
[1767021101799,0.00017122,87591.0,87574.0,0.00017122]
[1767021102107,0.0114305,87588.0,87574.0,0.00017122]
[1767021102698,0.00017122,87591.0,87574.0,0.00017122]
[1767021103705,0.0114308,87587.0,87574.0,0.00017122]
[1767021103906,0.011431,87585.0,87574.0,0.00017122]
[1767021104807,0.0114312,87583.0,87574.0,0.00017122]
[1767021105008,0.0114325,87573.0,87550.0,0.0114354]
[1767021105304,0.09712,87576.0,87551.0,0.15484]
[1767021105613,0.0114327,87572.0,87552.0,0.0114352]
[1767021105906,0.0114327,87572.0,87551.0,0.05772]
[1767021106094,0.00017132,87570.0,87553.0,0.00017132]
[1767021106498,1.32e-06,87570.0,87553.0,0.00017132]
[1767021106705,0.09712,87578.0,87553.0,0.00017132]
[1767021106907,0.09712,87578.0,87554.0,0.0114349]
[1767021107202,0.0114321,87576.0,87555.0,0.0114347]
[1767021107600,0.00017132,87574.0,87555.0,0.0114347]
[1767021107800,2e-07,87574.0,87557.0,0.0114345]
[1767021108306,2e-07,87574.0,87553.0,0.00017132]
[1767021108900,2e-07,87574.0,87553.0,0.01160632]
[1767021109196,2e-07,87574.0,87555.0,0.0114347]
[1767021109805,2e-07,87574.0,87553.0,0.01160632]
[1767021109806,0.0114326,87573.0,87553.0,0.01160632]
[1767021110118,2e-07,87574.0,87553.0,0.01160632]
[1767021110299,2e-07,87574.0,87555.0,0.0114348]
[1767021111993,2e-07,87574.0,87553.0,0.00017132]
[1767021112200,2e-07,87574.0,87562.0,0.0114338]
[1767021112502,2e-07,87574.0,87564.0,0.0114336]
[1767021112709,2e-07,87574.0,87563.0,0.09716]
[1767021113409,2e-07,87574.0,87558.0,0.0114343]
[1767021113602,2e-07,87574.0,87560.0,0.0114342]
[1767021113797,2e-07,87574.0,87553.0,0.00017132]
[1767021113998,0.0114329,87570.0,87553.0,0.00017132]
[1767021114200,0.0114334,87566.0,87553.0,0.00017132]
[1767021114401,0.0114326,87574.0,87553.0,0.00017132]
[1767021114611,0.0114328,87571.0,87553.0,0.00017132]
[1767021114801,2e-07,87574.0,87553.0,0.00017132]
[1767021115202,0.0114325,87573.0,87553.0,0.00017132]
[1767021115402,0.0114331,87569.0,87553.0,0.00017132]
[1767021115597,2e-07,87574.0,87553.0,0.00017132]
[1767021116914,2e-07,87574.0,87556.0,0.0114346]
[1767021117114,2e-07,87574.0,87557.0,0.15488]
[1767021120600,2e-07,87574.0,87573.0,0.0114325]
[1767021120903,2e-07,87574.0,87573.0,0.05772]
[1767021121311,0.3208,87618.0,87573.0,0.17192022]
[1767021121510,0.011427,87615.0,87589.0,0.0114303]
[1767021121703,0.09716,87620.0,87590.0,0.15488]
[1767021121909,0.09716,87620.0,87591.0,0.15488]
[1767021122205,0.00017122,87614.0,87597.0,0.00017122]
[1767021122407,0.0114275,87612.0,87595.0,0.05772]
[1767021123514,0.0114275,87612.0,87595.0,0.05789122]
[1767021123815,0.00017122,87614.0,87595.0,0.00017122]
[1767021124206,0.0114277,87610.0,87595.0,0.00017122]
[1767021126308,0.20676685,87605.0,87562.0,0.04087906]
[1767021126503,0.1085477,87610.0,87563.0,0.1548]
[1767021126504,0.011428,87608.0,87563.0,0.1548]
[1767021126710,0.0114307,87587.0,87565.0,0.11415199]
[1767021126916,0.20676685,87590.0,87557.0,0.09712]
[1767021127111,0.0114315,87581.0,87558.0,0.0114343]
[1767021127308,0.00017122,87578.0,87561.0,0.00017122]
[1767021127510,0.011432,87577.0,87561.0,0.00017122]
[1767021129411,0.00017122,87578.0,87561.0,0.00017122]
[1767021131712,0.00017122,87578.0,87561.0,0.01160522]
[1767021131916,1.22e-06,87578.0,87561.0,0.00017122]
[1767021134820,1.22e-06,87578.0,87562.0,0.0114338]
[1767021135208,0.0114324,87574.0,87561.0,0.00017122]
[1767021135722,0.011432,87577.0,87561.0,0.00017122]
[1767021135905,1.22e-06,87578.0,87561.0,0.00017122]
[1767021136105,1.22e-06,87578.0,87556.0,0.09712]
[1767021136106,0.0114331,87569.0,87556.0,0.15484]
[1767021136305,0.0114326,87573.0,87556.0,0.15484]
[1767021137117,0.0114321,87576.0,87556.0,0.15484]
[1767021137306,0.0114321,87576.0,87557.0,0.00017122]
[1767021137506,0.0114324,87574.0,87557.0,0.00017122]
[1767021138516,0.01143312,87578.0,87557.0,0.00017122]
[1767021138718,1.22e-06,87578.0,87557.0,0.00017122]
[1767021139118,0.011432,87577.0,87557.0,0.00017122]
[1767021139622,1.22e-06,87578.0,87557.0,0.00017122]
[1767021139821,0.01143312,87578.0,87557.0,0.00017122]
[1767021141621,0.01143312,87578.0,87557.0,0.01160572]
[1767021141821,0.0114323,87575.0,87557.0,0.00017122]
[1767021142223,0.0114328,87571.0,87557.0,0.00017122]
[1767021142622,1.22e-06,87578.0,87530.0,0.011438]
[1767021142623,1.22e-06,87578.0,87535.0,0.04087906]
[1767021142820,0.0114346,87557.0,87535.0,0.0114374]
[1767021143016,0.0114356,87549.0,87536.0,0.09716]
[1767021143216,0.0114353,87552.0,87537.0,0.15484]
[1767021143417,0.0114353,87552.0,87538.0,0.15484]
[1767021143716,0.0114349,87555.0,87532.0,0.0114377]
[1767021143909,0.0114345,87558.0,87534.0,0.0114375]
[1767021144318,0.00017132,87555.0,87538.0,0.0114369]
[1767021144519,0.00017132,87555.0,87537.0,0.00017132]
[1767021145025,0.00017132,87555.0,87537.0,0.01160842]
[1767021145322,0.00017132,87555.0,87537.0,0.00017132]
[1767021146323,0.0113852,87553.0,87537.0,0.00017132]
[1767021147118,0.00017132,87555.0,87537.0,1.32e-06]
[1767021147324,0.0114364,87544.0,87537.0,1.32e-06]
[1767021147522,0.0114364,87544.0,87529.0,0.05772]
[1767021147924,0.00017132,87555.0,87527.0,0.00013201]
[1767021148121,0.00017132,87555.0,87492.0,0.011443]
[1767021148122,0.0114374,87536.0,87519.0,0.09716]
[1767021148324,0.0114353,87552.0,87519.0,0.09716]
[1767021148325,0.0114369,87540.0,87519.0,0.09716]
[1767021148624,0.00017132,87538.0,87521.0,0.00011334]
[1767021149213,0.00014305,87537.0,87521.0,0.00011334]
[1767021149922,0.0114353,87552.0,87528.0,0.0114383]
[1767021150118,0.09716,87553.0,87529.0,0.15488]
[1767021150318,0.09716,87553.0,87530.0,0.09716]
[1767021150627,0.0114353,87552.0,87530.0,0.108598]
[1767021151122,0.00017132,87550.0,87530.0,0.108598]
[1767021151627,0.00017132,87550.0,87536.0,0.0114372]
[1767021151925,0.0114342,87561.0,87538.0,0.0114369]
[1767021152226,0.0114342,87561.0,87539.0,0.05772]
[1767021152427,0.0114342,87561.0,87540.0,0.09716]
[1767021152630,0.09716,87566.0,87540.0,0.09716]
[1767021152926,0.00017132,87562.0,87544.0,0.00017132]
[1767021153314,0.00017132,87562.0,87545.0,0.0114361]
[1767021153516,0.00017132,87562.0,87548.0,0.0114357]
[1767021153717,0.00017132,87562.0,87548.0,0.05772]
[1767021157521,0.01160532,87562.0,87548.0,0.05772]
[1767021158630,0.00017132,87562.0,87548.0,0.05772]
[1767021158828,0.0114341,87561.0,87548.0,0.05772]
[1767021159127,0.00017132,87562.0,87548.0,0.00772]
[1767021159128,0.011435,87554.0,87548.0,0.00772]
[1767021159332,0.0114345,87558.0,87544.0,0.00017132]
[1767021159520,0.0114345,87558.0,87544.0,0.05789132]
[1767021159923,0.01160522,87562.0,87544.0,0.05789132]
[1767021160324,0.00228447,87548.0,87544.0,0.05789132]
[1767021160728,0.01160522,87562.0,87544.0,0.05789132]
[1767021161830,0.00017132,87562.0,87544.0,0.05789132]
[1767021163233,0.00017132,87562.0,87544.0,0.06932742]
[1767021163430,0.09716,87577.0,87544.0,0.05789132]
[1767021163635,0.00228369,87578.0,87544.0,0.06932762]
[1767021163934,0.0114313,87583.0,87559.0,0.0114343]
[1767021164134,0.0114313,87583.0,87560.0,0.15488]
[1767021164534,0.00017132,87580.0,87563.0,0.00017132]
[1767021165934,0.00017132,87580.0,87564.0,0.15488]
[1767021166938,0.0114288,87593.0,87564.0,0.15488]
[1767021167130,0.09716,87605.0,87576.0,0.0114309]
[1767021167430,0.00228291,87608.0,87583.0,0.01143]
[1767021167634,0.00228291,87608.0,87585.0,0.0114297]
[1767021167827,0.00228291,87608.0,87586.0,0.05768]
[1767021168029,0.00017132,87605.0,87588.0,0.00017132]
[1767021168424,0.00228291,87608.0,87588.0,0.0114293]
[1767021168632,0.00228291,87608.0,87586.0,0.05556606]
[1767021168832,0.05768,87620.0,87586.0,0.05556606]
[1767021168833,0.0114255,87618.0,87591.0,0.0114289]
[1767021169333,0.0114259,87615.0,87587.0,0.0114294]
[1767021169635,0.00017122,87610.0,87592.0,0.00017122]
[1767021169836,0.09716,87619.0,87593.0,0.0114286]
[1767021170032,0.09716,87619.0,87594.0,0.09716]
[1767021170427,0.0114237,87632.0,87594.0,0.09716]
[1767021170628,0.069104,87630.0,87601.0,0.0114276]
[1767021170827,0.00017122,87624.0,87607.0,0.00017122]
[1767021171029,0.00017122,87624.0,87608.0,0.09716]
[1767021172735,0.0114256,87617.0,87608.0,0.09716]
[1767021172933,0.0114256,87617.0,87607.0,0.05768]
[1767021173334,0.0114248,87623.0,87607.0,0.05768]
[1767021173636,0.0114252,87620.0,87607.0,0.05768]
[1767021174637,0.01159602,87624.0,87607.0,0.05768]
[1767021174838,0.0114252,87620.0,87607.0,0.05768]
[1767021176341,0.0114262,87613.0,87607.0,0.05768]
[1767021176526,0.0114262,87613.0,87584.0,0.0114298]
[1767021176731,0.0114256,87618.0,87585.0,0.1548]
[1767021177040,0.0114256,87618.0,87591.0,0.011429]
[1767021177538,0.09712,87622.0,87596.0,0.00017122]
[1767021177740,0.0114238,87631.0,87606.0,0.0114269]
[1767021177942,0.0114238,87631.0,87607.0,0.05768]
[1767021178138,0.0114233,87635.0,87609.0,0.0114266]
[1767021178438,0.0114236,87633.0,87607.0,0.1548]
[1767021178635,0.00017122,87629.0,87611.0,0.00017122]
[1767021180144,0.0114245,87626.0,87611.0,0.00017122]
[1767021180338,0.00017122,87629.0,87611.0,0.00017122]
[1767021180539,0.0114248,87623.0,87611.0,0.00017122]
[1767021180845,0.09712,87622.0,87597.0,0.05768]
[1767021181142,0.09712,87622.0,87596.0,0.05768]
[1767021181340,0.011426,87614.0,87596.0,0.05768]
[1767021181646,0.0114244,87626.0,87596.0,0.05768]
[1767021181831,2e-08,87620.0,87614.0,0.0114258]
[1767021182029,0.09712,87641.0,87616.0,0.0114257]
[1767021182231,0.09712,87641.0,87615.0,0.05768]
[1767021182439,0.09712,87641.0,87617.0,0.0114256]
[1767021182641,0.011423,87637.0,87615.0,0.05768]
[1767021182834,0.00017122,87635.0,87617.0,0.00017122]
[1767021183038,0.1085426,87641.0,87617.0,0.00017122]
[1767021183231,0.09712,87649.0,87621.0,0.0114249]
[1767021183432,0.0114215,87649.0,87620.0,0.0114251]
[1767021183730,0.0114227,87640.0,87612.0,0.0114262]
[1767021183935,0.01159452,87635.0,87617.0,0.00017122]
[1767021184137,0.00017122,87635.0,87617.0,0.09729122]
[1767021184334,0.011424,87630.0,87617.0,0.15497122]
[1767021184645,0.00017122,87635.0,87617.0,0.15268518]
[1767021185156,0.011424,87630.0,87617.0,0.15268518]
[1767021185540,0.011424,87630.0,87616.0,0.05768]
[1767021185746,0.0114235,87634.0,87616.0,0.05768]
[1767021185941,0.0114246,87625.0,87615.0,0.00017122]
[1767021186145,0.0114253,87620.0,87602.0,0.09712]
[1767021186336,0.0114253,87620.0,87603.0,0.10328]
[1767021186537,0.0114253,87620.0,87604.0,0.05764]
[1767021186937,0.0114247,87624.0,87604.0,0.05764]
[1767021187239,0.00017122,87623.0,87605.0,0.00017122]
[1767021187445,0.0114262,87613.0,87595.0,0.09712]
[1767021187641,0.0114267,87609.0,87593.0,0.09712]
[1767021187845,0.09712,87614.0,87589.0,0.05764]
[1767021188144,0.0114251,87621.0,87589.0,0.05764]
[1767021188145,0.0114268,87608.0,87589.0,0.05764]
[1767021188445,0.0114267,87609.0,87589.0,0.05764]
[1767021188745,0.00017122,87608.0,87590.0,0.00017122]
[1767021188938,0.0114238,87631.0,87590.0,0.00017122]
[1767021189143,0.0114242,87628.0,87600.0,0.0114278]
[1767021189340,0.0114242,87628.0,87601.0,0.15476]
[1767021189546,0.0114237,87632.0,87602.0,0.0114275]
[1767021189846,0.00017122,87626.0,87608.0,0.00017122]
[1767021190337,0.011423,87637.0,87609.0,0.0114266]
[1767021190535,0.09712,87636.0,87611.0,0.0114264]
[1767021190749,0.0114233,87635.0,87612.0,0.09712]
[1767021191449,0.00017122,87632.0,87612.0,0.09712]
[1767021191954,0.00017122,87632.0,87613.0,0.0114261]
[1767021192249,0.0114218,87647.0,87619.0,0.0114253]
[1767021192548,0.011422,87645.0,87620.0,0.05764]
[1767021192744,0.00228213,87638.0,87620.0,0.05764]
[1767021193146,0.00245335,87638.0,87620.0,0.05781122]
[1767021193546,0.09712,87646.0,87624.0,0.0114246]
[1767021193944,0.011422,87645.0,87622.0,0.09712]
[1767021194242,0.09712,87646.0,87622.0,0.09712]
[1767021194437,0.09712,87646.0,87620.0,0.05781122]
[1767021194438,0.09712,87646.0,87620.0,0.00017122]
[1767021194642,0.09712,87646.0,87578.0,0.0114306]
[1767021194643,0.0114244,87627.0,87614.0,0.09712]
[1767021194947,0.0114235,87633.0,87609.0,0.00132]
[1767021195543,0.09712,87634.0,87612.0,0.0114261]
[1767021195743,0.00017122,87632.0,87614.0,0.00017122]
[1767021196152,0.0114241,87629.0,87614.0,0.00017122]
[1767021196854,0.00017122,87632.0,87614.0,0.00017122]
[1767021197056,0.01159492,87632.0,87614.0,0.00017122]
[1767021197244,0.0114239,87630.0,87614.0,0.00017122]
[1767021198154,0.0114246,87625.0,87614.0,0.00017122]
[1767021198646,0.00017122,87632.0,87591.0,0.04087906]
[1767021198847,0.0114249,87623.0,87599.0,0.0114279]
[1767021199048,0.0114242,87628.0,87593.0,0.11412984]
[1767021199240,0.0114245,87626.0,87602.0,0.0114274]
[1767021199446,0.0114239,87630.0,87603.0,0.15472]
[1767021199653,0.0114239,87630.0,87608.0,0.00017122]
[1767021200039,0.00017122,87632.0,87611.0,0.0114263]
[1767021200239,0.00017122,87632.0,87615.0,0.0114258]
[1767021200442,0.0114222,87643.0,87618.0,0.0114254]
[1767021200650,0.0114226,87641.0,87618.0,0.0114254]
[1767021201054,0.0114226,87641.0,87615.0,0.1661458]
[1767021201548,1.22e-06,87637.0,87615.0,0.15472]
[1767021201751,0.0114217,87647.0,87615.0,0.15472]
[1767021202749,0.15835546,87651.0,87620.0,0.0114251]
[1767021202954,0.0114224,87642.0,87627.0,0.00017122]
[1767021205053,0.0114225,87641.0,87627.0,0.00017122]
[1767021205253,0.15835546,87651.0,87627.0,0.00017122]
[1767021205453,0.09708,87651.0,87627.0,0.00017122]
[1767021205653,0.0114225,87641.0,87627.0,0.00017122]
[1767021205956,0.0114231,87637.0,87627.0,0.00017122]
[1767021206160,0.06127546,87649.0,87627.0,0.00017122]
[1767021206660,0.0114236,87633.0,87621.0,0.09708]
[1767021206952,0.0114232,87636.0,87620.0,0.02212]
[1767021207159,0.0114231,87637.0,87620.0,0.02212]
[1767021207361,0.0114225,87641.0,87620.0,0.02212]
[1767021207746,0.00017122,87639.0,87622.0,0.00017122]
[1767021208151,0.0114231,87637.0,87622.0,0.00017122]
[1767021208460,0.0114234,87635.0,87622.0,0.00017122]
[1767021208662,0.0114229,87638.0,87622.0,0.00017122]
[1767021208959,0.0114232,87636.0,87620.0,0.02000831]
[1767021209161,0.00017122,87639.0,87620.0,0.02000831]
[1767021209363,0.01159402,87639.0,87620.0,0.02000831]
[1767021209960,0.01159402,87639.0,87621.0,0.00017122]
[1767021210358,0.011423,87637.0,87621.0,0.00017122]
[1767021210865,0.00017122,87639.0,87622.0,0.0114249]
[1767021211059,0.11354566,87661.0,87635.0,0.0114232]
[1767021211060,0.06127546,87654.0,87635.0,0.0114232]
[1767021211250,0.06127546,87655.0,87637.0,0.0114229]
[1767021211449,0.15835546,87660.0,87635.0,0.15472]
[1767021211654,0.09708,87660.0,87635.0,0.15472]
[1767021211858,0.09708,87660.0,87637.0,0.0114229]
[1767021212059,0.09708,87660.0,87639.0,0.0114226]
[1767021212257,0.00017122,87658.0,87641.0,0.00017122]
[1767021214768,0.09936135,87668.0,87641.0,0.00017122]
[1767021214968,0.09936135,87668.0,87646.0,0.0114218]
[1767021215268,0.00228135,87668.0,87652.0,0.0114209]
[1767021215461,0.00228135,87668.0,87648.0,0.0114215]
[1767021215769,0.00228135,87668.0,87647.0,0.15472]
[1767021216464,0.0114191,87667.0,87647.0,0.15472]
[1767021216963,0.00228135,87668.0,87641.0,0.00017122]
[1767021217168,0.00228135,87668.0,87642.0,0.15472]
[1767021217169,0.0114197,87663.0,87642.0,0.15472]
[1767021217369,0.0114197,87663.0,87643.0,0.15472]
[1767021217573,0.00228135,87668.0,87647.0,0.0114217]
[1767021217774,0.01370035,87668.0,87643.0,0.15472]
[1767021217961,1.35e-06,87668.0,87650.0,0.20668556]
[1767021218161,0.06127546,87686.0,87655.0,0.0114205]
[1767021218366,0.0114176,87679.0,87656.0,0.15472]
[1767021218769,0.0114176,87679.0,87657.0,0.0114204]
[1767021218968,0.0114159,87692.0,87667.0,0.011419]
[1767021219276,0.00228057,87698.0,87667.0,0.011419]
[1767021219277,0.00228057,87698.0,87676.0,0.0114179]
[1767021219465,0.00228057,87698.0,87677.0,0.15472]
[1767021219971,0.00228057,87698.0,87677.0,0.1661377]
[1767021220171,0.00228057,87698.0,87685.0,0.0114167]
[1767021220371,0.09708,87709.0,87686.0,0.05764]
[1767021220570,0.0114121,87721.0,87694.0,0.0114155]
[1767021220761,0.0114121,87721.0,87700.0,0.20668556]
[1767021220966,0.0114123,87720.0,87701.0,0.15472]
[1767021221163,0.04290999,87728.0,87703.0,0.0114144]
[1767021221476,0.04290999,87728.0,87707.0,0.00017102]
[1767021221869,0.0114119,87723.0,87707.0,0.00017102]
[1767021222165,0.04290999,87728.0,87707.0,0.00017102]
[1767021222372,0.04290999,87728.0,87708.0,0.10936]
[1767021222575,0.0114126,87717.0,87708.0,0.10936]
[1767021222770,0.0114134,87711.0,87707.0,2e-08]
[1767021222974,0.0114134,87711.0,87704.0,0.0576]
[1767021223172,0.04290999,87728.0,87704.0,0.0576]
[1767021223677,0.04290999,87728.0,87705.0,0.15464]
[1767021223875,0.09704,87747.0,87710.0,0.20668556]
[1767021224178,0.00017102,87737.0,87711.0,0.15464]
[1767021224374,0.00017102,87737.0,87712.0,0.09704]
[1767021224670,0.00017102,87737.0,87712.0,0.22245748]
[1767021224875,0.00017102,87737.0,87715.0,0.0114127]
[1767021225075,0.00017102,87737.0,87716.0,0.0576]
[1767021225270,0.0576,87753.0,87718.0,0.00017102]
[1767021225271,0.00017102,87735.0,87718.0,0.00017102]
[1767021225471,0.00017102,87735.0,87719.0,0.15464]
[1767021225671,0.00017102,87735.0,87718.0,0.00017102]
[1767021225882,0.00017102,87735.0,87719.0,0.15464]
[1767021226466,0.00017102,87735.0,87718.0,0.00017102]
[1767021226467,0.0114112,87728.0,87718.0,0.09721102]
[1767021226666,0.0114112,87728.0,87719.0,0.0576]
[1767021226869,0.0114121,87721.0,87694.0,0.0114155]
[1767021227172,0.0114091,87744.0,87673.0,0.00014486]
[1767021227173,0.09704,87745.0,87700.0,0.20668556]
[1767021227374,0.0114062,87767.0,87691.0,0.11398999]
[1767021227375,0.09704,87744.0,87723.0,0.0114117]
[1767021227570,0.09704,87745.0,87730.0,0.20668556]
[1767021227771,0.09704,87747.0,87731.0,0.0114107]
[1767021227969,0.00017102,87748.0,87731.0,0.0114107]
[1767021228174,0.00017102,87748.0,87730.0,0.00017102]
[1767021228175,0.011406,87768.0,87732.0,0.15464]
[1767021228375,0.09704,87764.0,87732.0,0.15464]
[1767021228574,0.09704,87764.0,87737.0,0.0114099]
[1767021228770,0.0114068,87762.0,87733.0,0.0114104]
[1767021228976,0.0114079,87754.0,87732.0,0.15464]
[1767021229273,0.00017102,87752.0,87732.0,0.15464]
[1767021229870,0.00017102,87752.0,87730.0,0.00017102]
[1767021229871,0.0114081,87751.0,87730.0,0.05781102]
[1767021230077,0.00017102,87752.0,87730.0,0.05781102]
[1767021230277,0.011409,87745.0,87730.0,0.00017102]
[1767021230481,0.011359,87745.0,87730.0,0.00017102]
[1767021230669,0.0114094,87742.0,87730.0,0.00017102]
[1767021230871,0.097,87744.0,87721.0,0.097]
[1767021231375,0.0114095,87741.0,87721.0,0.097]
[1767021231571,0.0114101,87737.0,87712.0,0.0576]
[1767021231874,0.00017102,87733.0,87716.0,0.00017102]
[1767021232178,0.097,87732.0,87716.0,0.00017102]
[1767021232479,0.0114111,87729.0,87716.0,0.00017102]
[1767021232677,0.0114115,87726.0,87706.0,0.0576]
[1767021232880,0.0114109,87730.0,87706.0,0.0576]
[1767021233180,0.0114113,87727.0,87706.0,0.0576]
[1767021233369,0.0114118,87724.0,87706.0,0.0576]
[1767021233570,0.0576,87728.0,87707.0,0.0114138]
[1767021233765,0.097,87728.0,87709.0,0.00017102]
[1767021233964,0.097,87728.0,87709.0,0.01158452]
[1767021234379,0.097,87728.0,87709.0,0.00017102]
[1767021234577,0.09695,87728.0,87709.0,0.00017102]
[1767021235482,0.09695,87728.0,87710.0,0.0114135]
[1767021235683,0.09695,87728.0,87709.0,0.00017102]
[1767021236267,0.0690107,87731.0,87709.0,0.00017102]
[1767021236476,0.097,87730.0,87709.0,0.00017102]